bitfinex-derivatives/quotes_ETHF0:USTF0_20250928
["timestamp","ask_amount","ask_price","bid_price","bid_amount"]
[1759088878624,0.7294,4039.2,4039.1,0.90138]
[1759088878625,1.22658542,4039.2,4039.1,0.90138]
[1759088878821,1.22658542,4039.2,4039.1,1.22148]
[1759088881719,1.22658542,4039.2,4039.1,1.44418]
[1759088883023,0.49718542,4039.2,4039.1,2.79229093]
[1759088883229,0.7294,4039.5,4039.4,1.19614]
[1759088883527,1.22651596,4039.5,4039.4,1.44414]
[1759088886218,1.67194596,4039.5,4039.4,0.9987]
[1759088886418,1.35781596,4039.5,4039.4,1.44415]
[1759088888531,1.80324596,4039.5,4039.4,1.44415]
[1759088889635,1.22651596,4039.5,4039.4,1.44415]
[1759088889933,1.22651596,4039.5,4039.4,2.79226093]
[1759088890134,1.22651596,4039.5,4039.4,1.44415]
[1759088896231,1.22651596,4039.5,4039.4,2.52578738]
[1759088901748,0.49711596,4039.5,4039.4,2.52578738]
[1759088908754,0.81871596,4039.5,4039.4,2.52578738]
[1759088909455,0.49711596,4039.5,4039.4,2.52578738]
[1759088912055,1.03591596,4039.5,4039.4,2.52578738]
[1759088913261,0.49711596,4039.5,4039.4,2.52578738]
[1759088913854,3.2078,4039.9,4039.8,0.88461]
[1759088914057,3.70559808,4039.9,4039.8,1.45061]
[1759088914261,4.24439808,4039.9,4039.8,1.45061]
[1759088918954,1.03659808,4039.9,4039.8,1.45061]
[1759088922460,0.49779808,4039.9,4039.8,1.45061]
[1759088922654,0.5388,4040.2,4040.1,0.88457]
[1759088922856,1.03619598,4040.2,4040.1,2.53220738]
[1759088923057,1.24859598,4040.2,4040.1,2.53220738]
[1759088924867,1.24859598,4040.2,4040.1,2.08683738]
[1759088927655,1.24859598,4040.2,4040.1,2.53220738]
[1759088929966,0.7512,4040.2,4040.1,2.53220738]
[1759088941671,0.21873985,4040.5,4040.4,0.87444]
[1759088941872,0.71285776,4040.5,4040.4,2.53937738]
[1759088942068,0.49425776,4040.5,4040.4,2.53937738]
[1759088942477,0.80205776,4040.5,4040.4,2.53937738]
[1759088942777,1.02065776,4040.5,4040.4,2.73770657]
[1759088943276,1.02065776,4040.5,4040.4,2.53937738]
[1759088947380,0.49425776,4040.5,4040.4,2.53937738]
[1759088948175,0.00013985,4040.5,4040.4,5.41187738]
[1759088948776,0.00013985,4040.5,4040.4,10.41187738]
[1759088949184,0.00013985,4040.5,4040.4,11.49351476]
[1759088949376,0.00013985,4040.5,4040.4,10.41187738]
[1759088949775,0.00013985,4040.5,4040.4,11.49351476]
[1759088949976,0.00013985,4040.5,4040.4,12.82939584]
[1759088952687,0.00013985,4040.5,4040.4,10.66612108]
[1759088952878,0.00013985,4040.5,4040.4,11.74775846]
[1759088953282,0.00013985,4040.5,4040.4,10.41187738]
[1759088954284,0.00013985,4040.5,4040.4,11.74553991]
[1759088958288,0.00013985,4040.5,4040.4,12.01077707]
[1759088962896,0.00013985,4040.5,4040.4,11.76277707]
[1759088963097,0.00013985,4040.5,4040.4,12.01077707]
[1759088965188,0.00013985,4040.5,4040.4,10.67711454]
[1759088967194,0.00013985,4040.5,4040.4,5.67711454]
[1759088974698,0.00013985,4040.5,4040.4,4.08224]
[1759088974909,0.00013985,4040.5,4040.4,7.01125155]
[1759088975109,0.00013985,4040.5,4040.4,5.67711454]
[1759088976213,0.40223685,4041.1,4041.0,0.5617]
[1759088976411,0.40223685,4041.1,4041.0,1.1187]
[1759088976914,0.89639112,4041.1,4041.0,1.1187]
[1759088977114,0.89849866,4041.1,4041.0,1.12083472]
[1759088977611,0.49626181,4041.1,4041.0,1.12083472]
[1759088980311,0.71896181,4041.1,4041.0,1.12083472]
[1759088983017,0.71896181,4041.1,4041.0,1.56610472]
[1759088983817,1.04046181,4041.1,4041.0,1.56610472]
[1759088992933,1.25906181,4041.1,4041.0,1.56610472]
[1759088994338,1.25906181,4041.1,4041.0,0.00213472]
[1759088994527,1.25906181,4041.1,4041.0,0.25013472]
[1759088995026,1.25906181,4041.1,4041.0,1.00880472]
[1759088995532,1.25906181,4041.1,4041.0,1.22010472]
[1759088997732,1.25906181,4041.1,4041.0,1.43740472]
[1759089007637,1.25906181,4041.1,4041.0,0.44740472]
[1759089007829,1.25906181,4041.1,4041.0,0.69540472]
[1759089010237,1.25906181,4041.1,4041.0,1.00880472]
[1759089010832,6.70432181,4041.1,4041.0,0.25013472]
[1759089012834,6.70432181,4041.1,4041.0,0.00213472]
[1759089018840,6.69202181,4041.1,4041.0,0.00213472]
[1759089020244,7.77317597,4041.1,4041.0,0.00213472]
[1759089033143,0.44534,4040.4,4040.3,0.44534]
[1759089033449,0.7538,4039.9,4039.8,1.1827]
[1759089034248,0.7538,4039.9,4039.8,1.18470049]
[1759089039251,0.7538,4039.9,4039.8,0.73930049]
[1759089039453,1.24903267,4039.9,4039.8,1.18470049]
[1759089042362,0.49523267,4039.9,4039.8,1.18470049]
[1759089045150,3.4304,4040.4,4040.3,0.86955]
[1759089045348,3.9254076,4040.4,4040.3,1.18265]
[1759089045746,4.2468076,4040.4,4040.3,1.18265]
[1759089051962,4.4566076,4040.4,4040.3,1.18265]
[1759089052156,4.4566076,4040.4,4040.3,0.96435]
[1759089052460,4.4566076,4040.4,4040.3,0.44535]
[1759089054058,4.4566076,4040.4,4040.3,0.78405]
[1759089056967,4.4566076,4040.4,4040.3,1.01055]
[1759089058162,4.4566076,4040.4,4040.3,1.22605]
[1759089058972,1.2488076,4040.4,4040.3,1.22605]
[1759089061565,0.7176076,4040.4,4040.3,1.22605]
[1759089062265,0.4950076,4040.4,4040.3,1.22605]
[1759089065083,0.5418,4040.7,4040.6,1.22601]
[1759089065283,1.03762327,4040.7,4040.6,2.55516416]
[1759089065979,0.49582327,4040.7,4040.6,1.47401]
[1759089066777,0.72182327,4040.7,4040.6,1.47401]
[1759089067985,0.72176003,4040.7,4040.6,1.47401]
[1759089068786,0.49576003,4040.7,4040.6,1.47401]
[1759089069391,0.3158,4040.9,4040.8,0.8873]
[1759089069587,0.226,4040.9,4040.8,2.30715416]
[1759089069785,0.72166076,4040.9,4040.8,2.30715416]
[1759089070681,0.226,4040.9,4040.8,2.30715416]
[1759089070879,0.54390754,4041.1,4041.0,1.35937]
[1759089071080,1.25264633,4041.1,4041.0,1.60737]
[1759089072092,1.25264633,4041.1,4041.0,1.47397]
[1759089077395,0.4453,4040.8,4040.0,1.24683]
[1759089077587,0.5663,4040.5,4040.4,3.65313]
[1759089077896,2.4595476,4040.5,4040.4,0.248]
[1759089078293,0.7579,4040.3,4040.2,0.44536]
[1759089078493,1.25339344,4040.3,4040.2,0.69336]
[1759089079799,1.25339344,4040.3,4040.2,0.248]
[1759089081199,0.4413,4040.2,4039.9,3.65318]
[1759089081496,3.2078,4040.4,4039.8,0.25000049]
[1759089081497,0.7579,4039.9,4039.8,0.25000049]
[1759089081697,1.25391135,4039.9,4039.8,0.25000049]
[1759089082094,1.25391135,4039.9,4039.8,0.57600049]
[1759089082294,1.25391135,4039.9,4039.8,0.80050049]
[1759089082602,1.25391135,4039.9,4039.8,1.01720049]
[1759089083503,1.25376857,4039.9,4039.8,1.01720049]
[1759089085305,0.7579,4039.9,4039.8,1.01720049]
[1759089093100,0.7579,4039.9,4039.8,1.46261049]
[1759089094813,1.2033,4039.9,4039.8,1.01720049]
[1759089095613,1.2033,4039.9,4039.8,1.46261049]
[1759089100015,0.7579,4039.9,4039.8,1.46261049]
[1759089100216,1.2033,4039.9,4039.8,1.01720049]
[1759089101913,1.2033,4039.9,4039.8,0.00200049]
[1759089102115,1.69895237,4039.9,4039.8,0.00200049]
[1759089102814,1.69895237,4039.9,4039.8,0.31130049]
[1759089103016,1.69895237,4039.9,4039.8,0.00200049]
[1759089104425,1.69895237,4039.9,4039.8,0.31130049]
[1759089106521,1.69895237,4039.9,4039.8,0.75671049]
[1759089106722,1.69895237,4039.9,4039.8,0.96781049]
[1759089108722,1.69895237,4039.9,4039.8,1.17981049]
[1759089112332,1.69895237,4039.9,4039.8,0.73440049]
[1759089112622,1.69895237,4039.9,4039.8,1.17981049]
[1759089112830,1.69895237,4039.9,4039.8,0.73440049]
[1759089113626,1.69895237,4039.9,4039.8,1.17981049]
[1759089120736,1.25355237,4039.9,4039.8,1.17981049]
[1759089121439,1.69895237,4039.9,4039.8,1.17981049]
[1759089129236,1.69895237,4039.9,4039.8,0.00200049]
[1759089129542,0.44551,4038.9,4038.7,4.54245814]
[1759089129742,1.25555237,4038.8,4038.7,3.4226]
[1759089130531,1.25555237,4038.8,4038.7,3.73303416]
[1759089131639,1.25555237,4038.8,4038.7,3.95913416]
[1759089134241,0.7599,4038.8,4038.7,4.20713416]
[1759089134431,1.25629344,4038.8,4038.7,0.99933416]
[1759089135145,0.7599,4038.8,4038.7,0.99933416]
[1759089138538,0.7599,4038.8,4038.7,0.75133416]
[1759089142951,1.08206123,4040.4,4038.7,0.75133416]
[1759089142952,0.3227,4039.4,4039.0,0.1285]
[1759089143152,0.5439,4039.4,4039.3,1.83666123]
[1759089143357,1.26832751,4039.4,4039.3,1.83666123]
[1759089143557,1.26832751,4039.4,4039.3,0.7546]
[1759089146859,1.26832751,4039.4,4039.3,1.83666123]
[1759089147062,0.94562751,4039.4,4039.3,1.83666123]
[1759089147563,0.72022751,4039.4,4039.3,1.83666123]
[1759089150263,0.49902751,4039.4,4039.3,1.83666123]
[1759089151157,0.49902751,4039.4,4039.3,2.08466123]
[1759089152851,0.70802751,4039.4,4039.3,1.0026]
[1759089153060,1.24242751,4039.4,4039.3,0.7765]
[1759089155965,1.24242751,4039.4,4039.3,0.5285]
[1759089156862,0.7434,4039.1,4039.0,0.2235]
[1759089157063,1.24242751,4039.1,4039.0,0.2235]
[1759089157463,1.24242751,4039.1,4039.0,0.5505]
[1759089158066,1.24242751,4039.1,4039.0,0.99599]
[1759089159163,0.4295,4038.9,4038.8,0.69351]
[1759089159369,1.24242751,4038.9,4038.8,0.99601]
[1759089160569,1.24242751,4038.9,4038.8,1.22081]
[1759089160766,0.70802751,4038.9,4038.8,1.22081]
[1759089167572,1.02192751,4038.9,4038.8,1.22081]
[1759089172372,0.70802751,4038.9,4038.8,1.22081]
[1759089173273,1.02192751,4038.9,4038.8,1.22081]
[1759089174079,1.24242751,4038.9,4038.8,1.22081]
[1759089182675,0.49902751,4038.9,4038.8,1.22081]
[1759089182883,0.326,4039.1,4039.0,1.32119]
[1759089182884,0.5526,4039.1,4039.0,1.32119]
[1759089183082,0.72893806,4039.1,4039.0,2.65125123]
[1759089190289,0.50233806,4039.1,4039.0,2.65125123]
[1759089190584,0.72893806,4039.1,4039.0,2.65125123]
[1759089190788,1.26443806,4039.1,4039.0,2.65125123]
[1759089193294,1.26443806,4039.1,4039.0,2.40325123]
[1759089193484,1.26443806,4039.1,4039.0,2.65125123]
[1759089195694,0.93843806,4039.1,4039.0,2.65125123]
[1759089196093,0.72893806,4039.1,4039.0,2.65125123]
[1759089202309,0.50233806,4039.1,4039.0,2.65125123]
[1759089204208,0.50233806,4039.1,4039.0,2.91710279]
[1759089219924,0.5521,4039.4,4039.3,1.21536]
[1759089220122,1.05494107,4039.4,4039.3,1.46336]
[1759089220723,0.72244107,4039.4,4039.3,1.46336]
[1759089227124,0.50284107,4039.4,4039.3,2.81127279]
[1759089230526,0.4334,4039.9,4039.8,0.6665]
[1759089230826,1.26854374,4039.9,4039.8,1.4633]
[1759089232427,1.71393374,4039.9,4039.8,1.4633]
[1759089232627,1.71393374,4039.9,4039.8,1.0179]
[1759089234632,1.71393374,4039.9,4039.8,1.46331]
[1759089235629,0.44542,4039.7,4039.4,0.3081]
[1759089235829,0.7808,4039.5,4039.4,0.97155]
[1759089236033,1.28312289,4039.5,4039.4,1.21955]
[1759089238038,1.28312289,4039.5,4039.4,1.43445]
[1759089239039,1.28312289,4039.5,4039.4,1.18645]
[1759089239240,1.28312289,4039.5,4039.4,1.43445]
[1759089240340,0.7808,4039.5,4039.4,1.43445]
[1759089240944,1.28309218,4039.5,4039.4,1.18645]
[1759089241141,1.28309218,4039.5,4039.4,1.43445]
[1759089243042,1.28309218,4039.5,4039.4,0.97155]
[1759089243230,0.443,4039.2,4039.1,0.75358]
[1759089243435,0.7808,4039.2,4039.1,1.21958]
[1759089243836,0.7808,4039.2,4039.1,1.43448]
[1759089248245,0.2171,4039.2,4039.1,1.43448]
[1759089250649,0.5549,4039.2,4039.1,1.43448]
[1759089254250,1.05780557,4039.2,4039.1,1.43448]
[1759089254863,0.72000557,4039.2,4039.1,1.18648]
[1759089255049,0.72003746,4039.2,4039.1,1.43448]
[1759089256957,0.50293746,4039.2,4039.1,2.78239279]
[1759089259961,0.70853746,4039.2,4039.1,2.78239279]
[1759089260560,0.50293746,4039.2,4039.1,2.78239279]
[1759089264264,0.50293746,4039.2,4039.1,2.51619606]
[1759089269868,0.5477,4039.6,4039.5,1.33384]
[1759089270167,1.05165682,4039.6,4039.5,1.58184]
[1759089276872,1.25715682,4039.6,4039.5,1.58184]
[1759089277466,0.50395682,4039.6,4039.5,1.58184]
[1759089280475,0.7532,4039.8,4039.7,1.20812]
[1759089280667,1.25706478,4039.8,4039.7,1.45612]
[1759089286472,0.7532,4039.8,4039.7,1.45612]
[1759089286674,1.25704283,4039.8,4039.7,1.45612]
[1759089295080,1.70245283,4039.8,4039.7,1.45612]
[1759089295779,1.70245283,4039.8,4039.7,1.20812]
[1759089295980,0.88182,4039.7,4039.6,0.69343]
[1759089296179,1.71086283,4039.7,4039.6,0.69343]
[1759089296379,1.26544283,4039.7,4039.6,1.23593]
[1759089296579,1.26544283,4039.7,4039.6,1.44793]
[1759089305383,0.94024283,4039.7,4039.6,1.44793]
[1759089312095,1.27084283,4039.7,4039.6,1.44793]
[1759089325004,0.72894283,4039.7,4039.6,2.52964606]
[1759089325203,0.50384283,4039.7,4039.6,2.52964606]
[1759089326208,0.50384283,4039.7,4039.6,1.44793]
[1759089336810,0.71014283,4039.7,4039.6,1.44793]
[1759089337416,1.03044283,4039.7,4039.6,1.44793]
[1759089340625,0.71014283,4039.7,4039.6,1.44793]
[1759089340922,1.03044283,4039.7,4039.6,1.44793]
[1759089342015,1.25424283,4039.7,4039.6,0.7545]
[1759089342217,0.1261,4039.0,4038.7,0.00273416]
[1759089342422,0.7504,4038.8,4038.7,0.53333416]
[1759089342622,1.25424283,4038.8,4038.7,0.78133416]
[1759089348425,1.25424283,4038.8,4038.7,0.53333416]
[1759089348625,1.25424283,4038.8,4038.7,0.25073416]
[1759089350025,1.25424283,4038.8,4038.7,0.56553416]
[1759089351323,1.25424283,4038.8,4038.7,0.78133416]
[1759089351719,1.25424283,4038.8,4038.7,0.00273416]
[1759089352328,6.25424283,4038.8,4038.7,0.00273416]
[1759089354530,6.50224283,4038.8,4038.7,0.00273416]
[1759089356242,0.7426,4037.9,4037.8,0.5424]
[1759089357136,0.74519677,4037.9,4037.8,0.54510732]
[1759089357336,1.19081677,4037.9,4037.8,0.54510732]
[1759089358743,1.19081677,4037.9,4037.8,0.76120732]
[1759089360240,0.74519677,4037.9,4037.8,0.76120732]
[1759089360733,0.21349677,4037.9,4037.8,0.76120732]
[1759089360939,0.52179677,4037.9,4037.8,0.76120732]
[1759089362240,0.00259677,4037.9,4037.8,0.76120732]
[1759089364739,0.00259677,4037.9,4037.8,1.00920732]
[1759089367848,0.00259677,4037.9,4037.8,1.45483732]
[1759089369236,0.00259677,4037.9,4037.8,6.45483732]
[1759089381252,0.00259677,4037.9,4037.8,7.78949546]
[1759089384552,3.2078,4038.6,4038.5,0.56985]
[1759089384746,0.50221192,4038.6,4038.5,2.90011893]
[1759089385549,0.50477663,4038.6,4038.5,2.90011893]
[1759089386355,0.50477663,4038.6,4038.5,2.63439319]
[1759089387345,0.70987663,4038.6,4038.5,2.63439319]
[1759089396566,0.70987663,4038.6,4038.5,1.55245]
[1759089396760,1.03427663,4038.6,4038.5,2.63439319]
[1759089402264,1.24647663,4038.6,4038.5,2.51009319]
[1759089404159,1.24647663,4038.6,4038.5,2.63439319]
[1759089406064,1.24647663,4038.6,4038.5,0.5283]
[1759089406369,1.69201663,4038.6,4038.5,0.7763]
[1759089412963,1.69201663,4038.6,4038.5,0.5677]
[1759089413265,1.69201663,4038.6,4038.5,0.248]
[1759089414371,1.69201663,4038.6,4038.5,0.5603]
[1759089415569,1.69201663,4038.6,4038.5,1.21575]
[1759089416173,1.24647663,4038.6,4038.5,1.21575]
[1759089417876,1.24647663,4038.6,4038.5,1.43435]
[1759089419078,1.69201663,4038.6,4038.5,0.9888]
[1759089419678,1.69201663,4038.6,4038.5,1.43435]
[1759089419973,1.69201663,4038.6,4038.5,0.5603]
[1759089420274,1.24647663,4038.6,4038.5,0.248]
[1759089421467,1.24647663,4038.6,4038.5,0.69355]
[1759089422176,1.24647663,4038.6,4038.5,1.00585]
[1759089422375,1.24647663,4038.6,4038.5,1.21575]
[1759089427466,1.24647663,4038.6,4038.5,0.7702]
[1759089430179,1.24647663,4038.6,4038.5,1.21575]
[1759089431274,1.24647663,4038.6,4038.5,0.96775]
[1759089441090,1.24647663,4038.6,4038.5,1.17645]
[1759089445101,1.69201663,4038.6,4038.5,0.7309]
[1759089462417,1.69201663,4038.6,4038.5,0.5222]
[1759089467321,1.69201663,4038.6,4038.5,0.96775]
[1759089479636,1.69201663,4038.6,4038.5,1.19535]
[1759089479941,1.69201663,4038.6,4038.5,1.32155]
[1759089482436,1.24647663,4038.6,4038.5,1.32155]
[1759089482625,1.69201663,4038.6,4038.5,1.32155]
[1759089485341,1.24647663,4038.6,4038.5,1.32155]
[1759089485542,0.50477663,4038.6,4038.5,1.32155]
[1759089485737,0.50477663,4038.6,4038.5,6.32155]
[1759089488437,0.50477663,4038.6,4038.5,7.67013097]
[1759089504049,0.00256471,4038.6,4038.5,7.67013097]
[1759089505947,3.2078,4038.9,4038.8,0.88472]
[1759089506152,3.2078,4039.4,4039.3,0.7562]
[1759089506359,3.92586346,4039.4,4039.3,1.0042]
[1759089506753,4.23386346,4039.4,4039.3,1.0042]
[1759089506955,3.92836122,4039.4,4039.3,1.0042]
[1759089508258,3.92836122,4039.4,4039.3,2.08579767]
[1759089510352,3.42619776,4039.4,4039.3,2.28820235]
[1759089511966,4.17964776,4039.4,4039.3,2.28820235]
[1759089513263,4.17964776,4039.4,4039.3,2.08579767]
[1759089514362,3.73419776,4039.4,4039.3,2.28729356]
[1759089514865,3.73419776,4039.4,4039.3,2.73275356]
[1759089515469,3.73419776,4039.4,4039.3,2.53125767]
[1759089515663,3.95609776,4039.4,4039.3,2.53125767]
[1759089517961,4.40154776,4039.4,4039.3,2.53125767]
[1759089519070,3.95609776,4039.4,4039.3,2.53125767]
[1759089522572,3.95609776,4039.4,4039.3,2.03125767]
[1759089522773,3.95609776,4039.4,4039.3,1.99685767]
[1759089525073,3.95609776,4039.4,4039.3,2.21425767]
[1759089525274,0.74829776,4039.4,4039.3,2.21425767]
[1759089525872,0.74829776,4039.4,4039.3,2.47665767]
[1759089528679,0.31049776,4039.4,4039.3,1.39506]
[1759089529776,0.52639776,4039.4,4039.3,1.39506]
[1759089533892,0.52639776,4039.4,4039.3,2.72835811]
[1759089534089,0.52639776,4039.4,4039.3,2.47635811]
[1759089534394,0.00249776,4039.4,4039.3,2.47635811]
[1759089534594,0.00249776,4039.4,4039.3,1.14306]
[1759089536589,0.00249776,4039.4,4039.3,6.14306]
[1759089544496,7.76e-06,4039.4,4039.3,7.92456443]
[1759089547203,7.76e-06,4039.4,4039.3,6.14306]
[1759089548903,7.76e-06,4039.4,4039.3,1.14306]
[1759089549312,7.76e-06,4039.4,4039.3,2.9158559]
[1759089555402,7.76e-06,4039.4,4039.3,1.14306]
[1759089558005,0.89590776,4040.0,4039.9,0.8843]
[1759089558209,0.89590776,4040.0,4039.9,5.68459767]
[1759089558910,0.89790401,4040.0,4039.9,5.68459767]
[1759089559205,0.89790401,4040.0,4039.9,7.01438338]
[1759089559603,0.89790401,4040.0,4039.9,6.75148338]
[1759089562209,0.89790401,4040.0,4039.9,7.01438338]
[1759089563215,0.89790401,4040.0,4039.9,5.68459767]
[1759089568215,0.89790401,4040.0,4039.9,5.95013391]
[1759089569218,0.89790401,4040.0,4039.9,5.68723391]
[1759089572419,0.89790401,4040.0,4039.9,5.43923391]
[1759089572620,0.89790401,4040.0,4039.9,5.68723391]
[1759089574122,0.89790401,4040.0,4039.9,5.95033391]
[1759089581225,0.89790401,4040.0,4039.9,4.1287]
[1759089583028,0.89790401,4040.0,4039.9,4.3357]
[1759089585630,0.89790401,4040.0,4039.9,4.5988]
[1759089593138,0.68270401,4040.0,4039.9,4.5988]
[1759089595929,0.33419625,4040.0,4039.9,4.5988]
[1759089601144,0.54839625,4040.0,4039.9,4.5988]
[1759089601441,0.33419625,4040.0,4039.9,4.5988]
[1759089601746,0.00199625,4040.0,4039.9,6.37184761]
[1759089601949,0.00199625,4040.0,4039.9,4.5988]
[1759089603236,0.32349625,4040.0,4039.9,4.5988]
[1759089603442,0.32349625,4040.0,4039.9,4.3508]
[1759089603643,0.32349625,4040.0,4039.9,4.5988]
[1759089604151,0.00199625,4040.0,4039.9,4.5988]
[1759089604749,0.00199625,4040.0,4039.9,4.3508]
[1759089604950,0.32349625,4040.0,4039.9,4.5988]
[1759089605355,0.00199625,4040.0,4039.9,6.37428859]
[1759089606349,0.00199625,4040.0,4039.9,4.5988]
[1759089608657,0.5357,4040.9,4040.8,0.8984]
[1759089608950,1.0342762,4040.9,4040.8,2.75703391]
[1759089609358,0.5357,4040.9,4040.8,2.75703391]
[1759089609757,0.53783345,4040.9,4040.8,2.76023887]
[1759089610059,5.76523345,4040.9,4040.8,0.25120496]
[1759089613860,0.76523345,4040.9,4040.8,0.25120496]
[1759089614164,0.76523345,4040.9,4040.8,0.47860496]
[1759089615666,0.76523345,4040.9,4040.8,0.25120496]
[1759089619967,0.76523345,4040.9,4040.8,0.69650496]
[1759089621063,0.76523345,4040.9,4040.8,0.25120496]
[1759089622369,0.76523345,4040.9,4040.8,0.00320496]
[1759089622563,0.76523345,4040.9,4040.8,0.25120496]
[1759089622970,0.76523345,4040.9,4040.8,0.69650496]
[1759089624866,0.76523345,4040.9,4040.8,0.44850496]
[1759089625067,0.76523345,4040.9,4040.8,0.69650496]
[1759089625866,0.76523345,4040.9,4040.8,0.90360496]
[1759089626368,0.76523345,4040.9,4040.8,1.39130496]
[1759089627171,0.76523345,4040.9,4040.8,1.12820496]
[1759089627766,0.76523345,4040.9,4040.8,1.39130496]
[1759089628270,0.76523345,4040.9,4040.8,1.12820496]
[1759089628471,0.76523345,4040.9,4040.8,1.39130496]
[1759089629272,0.76523345,4040.9,4040.8,1.12820496]
[1759089630375,0.76523345,4040.9,4040.8,2.2090131]
[1759089632877,1.2634901,4040.9,4040.8,2.2090131]
[1759089633073,0.76523345,4040.9,4040.8,1.9844131]
[1759089633377,1.26350439,4040.9,4040.8,1.5293131]
[1759089633676,1.26350439,4040.9,4040.8,0.69650496]
[1759089635378,1.26350439,4040.9,4040.8,0.90360496]
[1759089637290,1.26350439,4040.9,4040.8,1.12820496]
[1759089637481,1.26350439,4040.9,4040.8,1.39130496]
[1759089637981,1.26350439,4040.9,4040.8,1.12820496]
[1759089638477,1.26350439,4040.9,4040.8,1.39130496]
[1759089638677,1.26350439,4040.9,4040.8,1.12820496]
[1759089643089,1.26350439,4040.9,4040.8,0.90360496]
[1759089644893,1.26350439,4040.9,4040.8,0.69650496]
[1759089649395,1.26350439,4040.9,4040.8,0.00320496]
[1759089649698,1.26350439,4040.9,4040.8,0.25120496]
[1759089652099,1.26350439,4040.9,4040.8,0.45830496]
[1759089655103,1.26350439,4040.9,4040.8,0.90360496]
[1759089664117,1.26350439,4040.9,4040.8,1.9844131]
[1759089664314,1.26350439,4040.9,4040.8,2.2001131]
[1759089664616,1.26350439,4040.9,4040.8,2.4635131]
[1759089666121,0.76523345,4040.9,4040.8,2.4635131]
[1759089667818,0.32363345,4040.9,4040.8,2.4635131]
[1759089668127,0.53823345,4040.9,4040.8,2.4635131]
[1759089672528,0.00213345,4040.9,4040.8,3.7946165]
[1759089674424,0.33133345,4040.9,4040.8,3.7946165]
[1759089675828,0.77323345,4040.9,4040.8,0.44850496]
[1759089676023,1.2709124,4040.9,4040.8,0.90310496]
[1759089677523,1.2709124,4040.9,4040.8,0.25120496]
[1759089680024,1.2709124,4040.9,4040.8,0.00320496]
[1759089680230,2.35172054,4040.9,4040.8,0.00320496]
[1759089680425,1.2709124,4040.9,4040.8,0.25120496]
[1759089683236,1.7161924,4040.9,4040.8,0.25120496]
[1759089686735,1.2709124,4040.9,4040.8,0.46620496]
[1759089687037,1.7161924,4040.9,4040.8,0.46620496]
[1759089687237,1.2709124,4040.9,4040.8,0.46620496]
[1759089687539,1.7161924,4040.9,4040.8,0.46620496]
[1759089693536,1.7161924,4040.9,4040.8,0.25120496]
[1759089699944,1.2709124,4040.9,4040.8,0.25120496]
[1759089701847,1.7161924,4040.9,4040.8,0.25120496]
[1759089705745,1.7161924,4040.9,4040.8,0.69650496]
[1759089706542,1.7161924,4040.9,4040.8,0.25120496]
[1759089707050,4.9239924,4040.9,4040.8,0.25120496]
[1759089718056,4.9239924,4040.9,4040.8,0.69650496]
[1759089718564,4.4787124,4040.9,4040.8,0.91690496]
[1759089718856,4.4787124,4040.9,4040.8,1.12520496]
[1759089719454,4.9239924,4040.9,4040.8,1.12520496]
[1759089719655,4.4787124,4040.9,4040.8,1.12520496]
[1759089719854,4.4787124,4040.9,4040.8,0.67990496]
[1759089720253,4.4787124,4040.9,4040.8,0.94250496]
[1759089720658,4.9239924,4040.9,4040.8,0.94250496]
[1759089720958,4.9239924,4040.9,4040.8,0.67990496]
[1759089721957,4.4787124,4040.9,4040.8,0.67990496]
[1759089722555,4.4787124,4040.9,4040.8,0.94250496]
[1759089725259,1.2709124,4040.9,4040.8,0.94250496]
[1759089725861,1.2709124,4040.9,4040.8,0.67990496]
[1759089728356,1.7161924,4040.9,4040.8,0.67990496]
[1759089728660,1.7161924,4040.9,4040.8,0.47160496]
[1759089729258,1.7161924,4040.9,4040.8,0.25120496]
[1759089731664,1.2709124,4040.9,4040.8,0.69650496]
[1759089731864,1.7161924,4040.9,4040.8,0.25120496]
[1759089734566,1.2709124,4040.9,4040.8,0.69650496]
[1759089734766,1.2709124,4040.9,4040.8,0.25120496]
[1759089734967,1.2709124,4040.9,4040.8,0.46780496]
[1759089735360,1.2709124,4040.9,4040.8,0.91310496]
[1759089735667,1.2709124,4040.9,4040.8,0.46780496]
[1759089736667,1.2709124,4040.9,4040.8,0.91310496]
[1759089737070,1.2709124,4040.9,4040.8,0.46780496]
[1759089737370,1.7161924,4040.9,4040.8,0.25120496]
[1759089737869,1.2709124,4040.9,4040.8,0.25120496]
[1759089738168,1.2709124,4040.9,4040.8,0.69650496]
[1759089740968,1.2709124,4040.9,4040.8,0.91310496]
[1759089745658,1.2709124,4040.9,4040.8,1.12630496]
[1759089748174,1.2709124,4040.9,4040.8,0.87830496]
[1759089748384,1.2709124,4040.9,4040.8,1.12630496]
[1759089749183,1.2709124,4040.9,4040.8,2.47331115]
[1759089749382,1.2709124,4040.9,4040.8,2.73651115]
[1759089749584,1.2709124,4040.9,4040.8,2.47331115]
[1759089753692,1.2709124,4040.9,4040.8,2.73651115]
[1759089753986,1.0459124,4040.9,4040.8,2.73651115]
[1759089754184,1.0459124,4040.9,4040.8,2.47015524]
[1759089756691,0.54823345,4040.9,4040.8,2.47015524]
[1759089756892,0.33133345,4040.9,4040.8,2.47015524]
[1759089757391,0.53923345,4040.9,4040.8,2.47015524]
[1759089757593,0.53923345,4040.9,4040.8,3.80125864]
[1759089759389,0.53923345,4040.9,4040.8,2.47015524]
[1759089762301,0.53923345,4040.9,4040.8,1.38950496]
[1759089762489,0.53923345,4040.9,4040.8,2.47015524]
[1759089766396,0.33133345,4040.9,4040.8,2.47015524]
[1759089767296,0.53923345,4040.9,4040.8,2.47015524]
[1759089770092,0.53923345,4040.9,4040.8,2.22215524]
[1759089770290,0.53923345,4040.9,4040.8,2.47015524]
[1759089770592,0.75633345,4040.9,4040.8,2.20695524]
[1759089776999,0.75633345,4040.9,4040.8,2.47155524]
[1759089778199,1.25429832,4040.9,4040.8,2.47155524]
[1759089780495,1.25429832,4040.9,4040.8,1.95895524]
[1759089780798,1.25429832,4040.9,4040.8,2.20695524]
[1759089785404,1.25429832,4040.9,4040.8,2.47155524]
[1759089789507,1.25429832,4040.9,4040.8,2.22355524]
[1759089789706,1.25429832,4040.9,4040.8,2.47155524]
[1759089792609,1.25429832,4040.9,4040.8,2.20695524]
[1759089796815,1.25429832,4040.9,4040.8,1.76165524]
[1759089797116,0.7841,4040.8,4040.5,4.5389034]
[1759089797306,0.4355,4039.8,4039.5,1.77480453]
[1759089797509,0.4355,4039.1,4039.0,3.2078]
[1759089797717,0.7743,4039.1,4039.0,3.2078]
[1759089798010,0.5466,4038.7,4038.6,1.77945028]
[1759089798214,0.3388,4038.7,4038.6,2.02947495]
[1759089798410,0.4737,4039.0,4038.9,0.6988]
[1759089798610,0.6815,4039.0,4038.9,2.02745028]
[1759089799417,0.9092,4039.0,4038.9,2.02745028]
[1759089801316,0.9092,4039.0,4038.9,0.6837]
[1759089801621,0.7743,4038.9,4038.8,0.2125]